[Event "*** SCC Grand Prix: Titled Tuesday Blitz"]
[Site "Chess.com"]
[Date "2020.08.11"]
[Round "5"]
[White "zmarian"]
[Black "crossingthestreet"]
[Result "0-1"]
[WhiteElo "2196"]
[BlackElo "2404"]
[TimeControl "180+1"]
[EndTime "10:55:12 PDT"]
[Termination "crossingthestreet won on time"]

1. g3 {[%clk 0:01:36.2]} 1... d5 {[%clk 0:02:58.6]} 2. Bg2 {[%clk 0:01:35.6]}
2... Nf6 {[%clk 0:02:58.9]} 3. Nf3 {[%clk 0:01:35.3]} 3... e6 {[%clk 0:02:59.4]}
4. O-O {[%clk 0:01:35.2]} 4... Be7 {[%clk 0:02:59.3]} 5. d3 {[%clk 0:01:35.3]}
5... O-O {[%clk 0:02:58.4]} 6. Nbd2 {[%clk 0:01:35.4]} 6... c5 {[%clk
0:02:58.8]} 7. c4 {[%clk 0:01:35.2]} 7... Nc6 {[%clk 0:02:55.4]} 8. a3 {[%clk
0:01:34.6]} 8... d4 {[%clk 0:02:54.8]} 9. b4 {[%clk 0:01:33.7]} 9... cxb4 {[%clk
0:02:54]} 10. Qc2 {[%clk 0:01:33.5]} 10... a5 {[%clk 0:02:44]} 11. axb4 {[%clk
0:01:30.2]} 11... Bxb4 {[%clk 0:02:36]} 12. Bb2 {[%clk 0:01:26.9]} 12... e5
{[%clk 0:02:32.2]} 13. Nb3 {[%clk 0:01:21.2]} 13... Nd7 {[%clk 0:02:28.9]} 14.
e3 {[%clk 0:01:17.6]} 14... Nc5 {[%clk 0:02:08.2]} 15. exd4 {[%clk 0:01:12.6]}
15... Nxb3 {[%clk 0:02:07.5]} 16. Qxb3 {[%clk 0:01:11.5]} 16... exd4 {[%clk
0:02:07.1]} 17. Qa2 {[%clk 0:01:03.9]} 17... Bf5 {[%clk 0:02:05]} 18. Rad1
{[%clk 0:01:03.1]} 18... Qd7 {[%clk 0:01:55.1]} 19. Qa1 {[%clk 0:00:59.7]} 19...
Rad8 {[%clk 0:01:55.2]} 20. Ba3 {[%clk 0:00:58.7]} 20... Rfe8 {[%clk 0:01:41.2]}
21. Bxb4 {[%clk 0:00:53.1]} 21... axb4 {[%clk 0:01:24.5]} 22. Qb2 {[%clk
0:00:52]} 22... Ra8 {[%clk 0:01:18.9]} 23. Rfe1 {[%clk 0:00:51]} 23... h6 {[%clk
0:01:14]} 24. Rxe8+ {[%clk 0:00:48.6]} 24... Rxe8 {[%clk 0:01:13.6]} 25. Ra1
{[%clk 0:00:47.2]} 25... Bxd3 {[%clk 0:01:11.7]} 26. Rd1 {[%clk 0:00:42]} 26...
Bxc4 {[%clk 0:01:06.6]} 27. h3 {[%clk 0:00:32.8]} 27... d3 {[%clk 0:00:55.1]}
28. Rd2 {[%clk 0:00:28]} 28... Re2 {[%clk 0:00:49.8]} 29. Bf1 {[%clk 0:00:21.8]}
29... Rxd2 {[%clk 0:00:45.4]} 30. Qxd2 {[%clk 0:00:20.3]} 30... Qd5 {[%clk
0:00:39.1]} 31. Ne1 {[%clk 0:00:19.6]} 31... Ne5 {[%clk 0:00:38.6]} 32. Bg2
{[%clk 0:00:19.5]} 32... Qd4 {[%clk 0:00:36]} 33. Qxb4 {[%clk 0:00:18.5]} 33...
d2 {[%clk 0:00:36.2]} 34. Bxb7 {[%clk 0:00:06.8]} 34... d1=Q {[%clk 0:00:34.9]}
35. Bg2 {[%clk 0:00:04.8]} 35... Nd3 {[%clk 0:00:31.3]} 36. Qb8+ {[%clk
0:00:03.3]} 36... Kh7 {[%clk 0:00:31.3]} 0-1

[Event "*** SCC Grand Prix: Titled Tuesday Blitz"]
[Site "Chess.com"]
[Date "2020.08.11"]
[Round "5"]
[White "Khvicha_Supatashvili"]
[Black "bazar-wokzal"]
[Result "1-0"]
[WhiteElo "2718"]
[BlackElo "2468"]
[TimeControl "180+1"]
[EndTime "10:55:15 PDT"]
[Termination "Khvicha_Supatashvili won by resignation"]

1. d4 {[%clk 0:03:00.9]} 1... Nf6 {[%clk 0:02:59.3]} 2. Nf3 {[%clk 0:02:59.4]}
2... e6 {[%clk 0:02:58.7]} 3. c4 {[%clk 0:02:58.8]} 3... Nc6 {[%clk 0:02:57.1]}
4. a3 {[%clk 0:02:56.6]} 4... g6 {[%clk 0:02:55.8]} 5. Nc3 {[%clk 0:02:55.7]}
5... Bg7 {[%clk 0:02:55.7]} 6. d5 {[%clk 0:02:49.7]} 6... Ne7 {[%clk 0:02:53.2]}
7. e4 {[%clk 0:02:47.4]} 7... d6 {[%clk 0:02:53.7]} 8. Bd3 {[%clk 0:02:41.7]}
8... e5 {[%clk 0:02:49.6]} 9. h3 {[%clk 0:02:34.4]} 9... O-O {[%clk 0:02:48.8]}
10. Be3 {[%clk 0:02:31.3]} 10... Nh5 {[%clk 0:02:40.9]} 11. O-O {[%clk
0:02:06.5]} 11... Nf4 {[%clk 0:02:33.8]} 12. Bc2 {[%clk 0:01:58.1]} 12... f5
{[%clk 0:02:26.8]} 13. Bxf4 {[%clk 0:01:46.4]} 13... exf4 {[%clk 0:02:26.6]} 14.
Re1 {[%clk 0:01:35.4]} 14... h6 {[%clk 0:02:15.4]} 15. e5 {[%clk 0:01:27.2]}
15... dxe5 {[%clk 0:02:11.8]} 16. Nxe5 {[%clk 0:01:27.3]} 16... a6 {[%clk
0:01:56.1]} 17. c5 {[%clk 0:01:24.4]} 17... g5 {[%clk 0:01:39.9]} 18. d6 {[%clk
0:01:22.4]} 18... cxd6 {[%clk 0:01:39.9]} 19. cxd6 {[%clk 0:01:21.8]} 19... Nc6
{[%clk 0:01:39.1]} 20. Qd5+ {[%clk 0:01:15.6]} 20... Kh7 {[%clk 0:01:38.9]} 21.
Nxc6 {[%clk 0:01:12.2]} 21... bxc6 {[%clk 0:01:38.2]} 22. Qxc6 {[%clk
0:01:12.6]} 22... Rb8 {[%clk 0:01:31.8]} 23. Re7 {[%clk 0:00:42.3]} 23... Rxb2
{[%clk 0:01:20.1]} 24. Na4 {[%clk 0:00:31.6]} 24... Rxc2 {[%clk 0:01:11.5]} 25.
Qxc2 {[%clk 0:00:28.8]} 25... Qxd6 {[%clk 0:01:11.6]} 26. Rae1 {[%clk
0:00:27.6]} 26... Qxa3 {[%clk 0:00:58.1]} 27. Nb6 {[%clk 0:00:26.4]} 27... f3
{[%clk 0:00:35.7]} 28. Nxc8 {[%clk 0:00:25.6]} 28... fxg2 {[%clk 0:00:35.3]} 29.
Kxg2 {[%clk 0:00:18.7]} 29... Kh8 {[%clk 0:00:26.6]} 30. Re8 {[%clk 0:00:13.3]}
30... Kh7 {[%clk 0:00:18.8]} 31. Rxf8 {[%clk 0:00:12.7]} 31... Qxf8 {[%clk
0:00:18.6]} 32. Ne7 {[%clk 0:00:13.1]} 32... Qa8+ {[%clk 0:00:16.5]} 33. Kg1
{[%clk 0:00:13.5]} 1-0

[Event "*** SCC Grand Prix: Titled Tuesday Blitz"]
[Site "Chess.com"]
[Date "2020.08.11"]
[Round "5"]
[White "Grischuk"]
[Black "TheBigBoss04"]
[Result "1-0"]
[WhiteElo "3034"]
[BlackElo "2825"]
[TimeControl "180+1"]
[EndTime "10:55:16 PDT"]
[Termination "Grischuk won on time"]

1. Nf3 {[%clk 0:03:00.9]} 1... d5 {[%clk 0:02:59.5]} 2. d4 {[%clk 0:03:00.9]}
2... Nf6 {[%clk 0:02:59.2]} 3. c4 {[%clk 0:03:01.3]} 3... e6 {[%clk 0:02:59.6]}
4. Nc3 {[%clk 0:03:00.6]} 4... a6 {[%clk 0:02:59.8]} 5. cxd5 {[%clk 0:02:59.9]}
5... exd5 {[%clk 0:03:00.7]} 6. Bg5 {[%clk 0:02:59.5]} 6... Be6 {[%clk
0:03:00.7]} 7. e3 {[%clk 0:02:58.8]} 7... Nbd7 {[%clk 0:03:00.5]} 8. h3 {[%clk
0:02:56.4]} 8... Bd6 {[%clk 0:02:59.4]} 9. Bd3 {[%clk 0:02:53.6]} 9... c6 {[%clk
0:02:59.6]} 10. Bf4 {[%clk 0:02:52.9]} 10... Qc7 {[%clk 0:02:59.1]} 11. Qd2
{[%clk 0:02:50.7]} 11... h6 {[%clk 0:02:49.5]} 12. Rc1 {[%clk 0:02:42.7]} 12...
g5 {[%clk 0:02:34.6]} 13. Bxd6 {[%clk 0:02:41.6]} 13... Qxd6 {[%clk 0:02:35.4]}
14. a3 {[%clk 0:02:29.6]} 14... a5 {[%clk 0:02:07.2]} 15. Qc2 {[%clk 0:02:17]}
15... O-O {[%clk 0:01:57.3]} 16. Ne2 {[%clk 0:02:13.7]} 16... Rac8 {[%clk
0:01:44.9]} 17. O-O {[%clk 0:02:13]} 17... c5 {[%clk 0:01:39.2]} 18. dxc5 {[%clk
0:02:12.1]} 18... Nxc5 {[%clk 0:01:39.6]} 19. Nfd4 {[%clk 0:01:59]} 19... Nfe4
{[%clk 0:01:27]} 20. Qd1 {[%clk 0:01:56.3]} 20... Nxd3 {[%clk 0:01:16.4]} 21.
Qxd3 {[%clk 0:01:57.2]} 21... Qe5 {[%clk 0:01:11.5]} 22. Qb5 {[%clk 0:01:39.8]}
22... Nd2 {[%clk 0:01:02.6]} 23. Rfd1 {[%clk 0:01:31.8]} 23... Nc4 {[%clk
0:00:58.3]} 24. b3 {[%clk 0:01:30.3]} 24... Nxa3 {[%clk 0:00:47.8]} 25. Qxa5
{[%clk 0:01:29.8]} 25... Qd6 {[%clk 0:00:34.5]} 26. Ng3 {[%clk 0:01:24.5]} 26...
Ra8 {[%clk 0:00:29.2]} 27. Qd2 {[%clk 0:01:22.5]} 27... Qe5 {[%clk 0:00:25]} 28.
Rc5 {[%clk 0:01:17.1]} 28... Rfc8 {[%clk 0:00:21.2]} 29. Rdc1 {[%clk 0:01:10.7]}
29... Rxc5 {[%clk 0:00:20.9]} 30. Rxc5 {[%clk 0:01:11.6]} 30... b6 {[%clk
0:00:18.3]} 31. Rc6 {[%clk 0:01:07.6]} 31... Nb1 {[%clk 0:00:09.6]} 32. Qc1
{[%clk 0:00:49.5]} 32... Na3 {[%clk 0:00:05.1]} 33. Rxb6 {[%clk 0:00:48.8]}
33... Rc8 {[%clk 0:00:03.3]} 34. Qxa3 {[%clk 0:00:45.3]} 34... h5 {[%clk
0:00:03.8]} 35. Nxh5 {[%clk 0:00:28.2]} 35... g4 {[%clk 0:00:02.5]} 36. hxg4
{[%clk 0:00:27.9]} 1-0

[Event "*** SCC Grand Prix: Titled Tuesday Blitz"]
[Site "Chess.com"]
[Date "2020.08.11"]
[Round "5"]
[White "Alopekos"]
[Black "Klavdia_Nik"]
[Result "1-0"]
[WhiteElo "2283"]
[BlackElo "2051"]
[TimeControl "180+1"]
[EndTime "10:55:16 PDT"]
[Termination "Alopekos won on time"]

1. d4 {[%clk 0:03:00.9]} 1... Nf6 {[%clk 0:02:25.7]} 2. c4 {[%clk 0:02:59.8]}
2... c5 {[%clk 0:02:26.1]} 3. Nf3 {[%clk 0:02:58.5]} 3... b6 {[%clk 0:02:25.7]}
4. g3 {[%clk 0:02:56.4]} 4... Bb7 {[%clk 0:02:25.9]} 5. Bg2 {[%clk 0:02:56.9]}
5... g6 {[%clk 0:02:26.4]} 6. O-O {[%clk 0:02:56.7]} 6... Bg7 {[%clk 0:02:27]}
7. Nc3 {[%clk 0:02:55.8]} 7... O-O {[%clk 0:02:27.1]} 8. h3 {[%clk 0:02:55.9]}
8... d6 {[%clk 0:02:18.6]} 9. Re1 {[%clk 0:02:55.6]} 9... Ne4 {[%clk 0:02:16.2]}
10. Nxe4 {[%clk 0:02:53.2]} 10... Bxe4 {[%clk 0:02:16.4]} 11. e3 {[%clk
0:02:39.4]} 11... cxd4 {[%clk 0:02:02.6]} 12. exd4 {[%clk 0:02:34.2]} 12... d5
{[%clk 0:02:02.3]} 13. cxd5 {[%clk 0:02:21.4]} 13... Bxd5 {[%clk 0:01:56.8]} 14.
Bg5 {[%clk 0:02:13.5]} 14... Nc6 {[%clk 0:01:46.4]} 15. Rc1 {[%clk 0:01:46.4]}
15... h6 {[%clk 0:01:36.8]} 16. Rxc6 {[%clk 0:01:36.3]} 16... hxg5 {[%clk
0:01:19]} 17. Rc3 {[%clk 0:01:31.4]} 17... e6 {[%clk 0:01:13.8]} 18. Qd2 {[%clk
0:01:21.2]} 18... Bf6 {[%clk 0:01:13.3]} 19. Ne5 {[%clk 0:01:17]} 19... Bxg2
{[%clk 0:01:08.7]} 20. Kxg2 {[%clk 0:01:17.9]} 20... Qd5+ {[%clk 0:01:08]} 21.
Kg1 {[%clk 0:01:12]} 21... Rac8 {[%clk 0:00:51.9]} 22. Ng4 {[%clk 0:00:58.6]}
22... Be7 {[%clk 0:00:44.7]} 23. Re5 {[%clk 0:00:51.3]} 23... Qxa2 {[%clk
0:00:39]} 24. d5 {[%clk 0:00:41.7]} 24... Rxc3 {[%clk 0:00:17]} 25. Qxc3 {[%clk
0:00:40.7]} 25... Re8 {[%clk 0:00:05.5]} 26. dxe6 {[%clk 0:00:36.9]} 26... f6
{[%clk 0:00:05.5]} 27. Re1 {[%clk 0:00:33]} 27... Kg7 {[%clk 0:00:02.8]} 28. Qc6
{[%clk 0:00:16.1]} 1-0

[Event "*** SCC Grand Prix: Titled Tuesday Blitz"]
[Site "Chess.com"]
[Date "2020.08.11"]
[Round "5"]
[White "VladimirBelous"]
[Black "Zkid"]
[Result "1-0"]
[WhiteElo "2755"]
[BlackElo "2858"]
[TimeControl "180+1"]
[EndTime "10:55:17 PDT"]
[Termination "VladimirBelous won by checkmate"]

1. c4 {[%clk 0:03:00.9]} 1... e5 {[%clk 0:02:59.6]} 2. g3 {[%clk 0:02:59.1]}
2... Nc6 {[%clk 0:02:59.3]} 3. Bg2 {[%clk 0:02:59.1]} 3... g6 {[%clk 0:02:59.7]}
4. Nc3 {[%clk 0:02:57.7]} 4... Bg7 {[%clk 0:02:59.6]} 5. e3 {[%clk 0:02:57.2]}
5... f5 {[%clk 0:02:59.4]} 6. Nge2 {[%clk 0:02:57.7]} 6... Nf6 {[%clk
0:02:58.3]} 7. O-O {[%clk 0:02:58.1]} 7... O-O {[%clk 0:02:58.3]} 8. d4 {[%clk
0:02:58.1]} 8... d6 {[%clk 0:02:57.1]} 9. d5 {[%clk 0:02:47]} 9... Ne7 {[%clk
0:02:56.7]} 10. e4 {[%clk 0:02:47.6]} 10... fxe4 {[%clk 0:02:37]} 11. Nxe4
{[%clk 0:02:47]} 11... Nxe4 {[%clk 0:02:34.7]} 12. Bxe4 {[%clk 0:02:47.9]} 12...
Bh3 {[%clk 0:02:34.3]} 13. Bg2 {[%clk 0:02:43.5]} 13... Qd7 {[%clk 0:02:32.6]}
14. Nc3 {[%clk 0:02:37.3]} 14... Bxg2 {[%clk 0:02:29.6]} 15. Kxg2 {[%clk
0:02:38.2]} 15... Nf5 {[%clk 0:02:29.7]} 16. Qd3 {[%clk 0:02:25.1]} 16... Nd4
{[%clk 0:02:22.8]} 17. f3 {[%clk 0:02:21.8]} 17... Rf7 {[%clk 0:02:09.3]} 18.
Be3 {[%clk 0:02:05.5]} 18... Nf5 {[%clk 0:02:05.4]} 19. Ne4 {[%clk 0:01:58.9]}
19... Raf8 {[%clk 0:02:01.2]} 20. Ng5 {[%clk 0:01:49.4]} 20... Nxe3+ {[%clk
0:01:59.3]} 21. Qxe3 {[%clk 0:01:49.4]} 21... Bh6 {[%clk 0:01:59.3]} 22. h4
{[%clk 0:01:41.3]} 22... Rf5 {[%clk 0:01:56.1]} 23. f4 {[%clk 0:01:25.1]} 23...
exf4 {[%clk 0:01:47.9]} 24. Qe6+ {[%clk 0:01:24.6]} 24... Qxe6 {[%clk
0:01:46.6]} 25. Nxe6 {[%clk 0:01:23.9]} 25... f3+ {[%clk 0:01:45.1]} 26. Kf2
{[%clk 0:01:23.5]} 26... R8f7 {[%clk 0:01:35.5]} 27. Rae1 {[%clk 0:01:16.5]}
27... Bd2 {[%clk 0:01:34.9]} 28. Rd1 {[%clk 0:01:10.4]} 28... Ba5 {[%clk
0:01:32.3]} 29. g4 {[%clk 0:00:36]} 29... Re5 {[%clk 0:01:28]} 30. Kg3 {[%clk
0:00:36.4]} 30... f2 {[%clk 0:01:26]} 31. Ng5 {[%clk 0:00:18.2]} 31... Re3+
{[%clk 0:01:13]} 32. Kg2 {[%clk 0:00:18]} 32... Rf4 {[%clk 0:01:13.5]} 33. Ne6
{[%clk 0:00:10]} 33... Rxg4+ {[%clk 0:01:11.9]} 34. Kxf2 {[%clk 0:00:10.9]}
34... Rh3 {[%clk 0:01:03.8]} 35. Ke2 {[%clk 0:00:09.9]} 35... Re4+ {[%clk
0:00:57.2]} 36. Kf2 {[%clk 0:00:09.7]} 36... Rxc4 {[%clk 0:00:50]} 37. Kg2
{[%clk 0:00:07.3]} 37... Rhxh4 {[%clk 0:00:13.6]} 38. Rf8# {[%clk 0:00:06.6]}
1-0

[Event "*** SCC Grand Prix: Titled Tuesday Blitz"]
[Site "Chess.com"]
[Date "2020.08.11"]
[Round "5"]
[White "econpower"]
[Black "Donskov_AN"]
[Result "0-1"]
[WhiteElo "2708"]
[BlackElo "2579"]
[TimeControl "180+1"]
[EndTime "10:55:18 PDT"]
[Termination "Donskov_AN won by resignation"]

1. d4 {[%clk 0:03:00.9]} 1... Nf6 {[%clk 0:02:59.7]} 2. Nf3 {[%clk 0:03:00.7]}
2... e6 {[%clk 0:02:58.6]} 3. Bf4 {[%clk 0:03:00.7]} 3... c5 {[%clk 0:02:58.1]}
4. e3 {[%clk 0:03:00.6]} 4... d5 {[%clk 0:02:58.6]} 5. Nbd2 {[%clk 0:02:59.5]}
5... Nc6 {[%clk 0:02:57.5]} 6. c3 {[%clk 0:02:59.3]} 6... Be7 {[%clk 0:02:57.7]}
7. Bd3 {[%clk 0:02:58.9]} 7... Nh5 {[%clk 0:02:55.1]} 8. Bg3 {[%clk 0:02:58.4]}
8... f5 {[%clk 0:02:54]} 9. Be5 {[%clk 0:02:39.1]} 9... Nf6 {[%clk 0:02:51.6]}
10. h3 {[%clk 0:02:36.7]} 10... c4 {[%clk 0:02:49.6]} 11. Bc2 {[%clk 0:02:35.6]}
11... b5 {[%clk 0:02:49.5]} 12. g4 {[%clk 0:02:34.7]} 12... Nxe5 {[%clk
0:02:41.8]} 13. Nxe5 {[%clk 0:02:33.5]} 13... g6 {[%clk 0:02:26.9]} 14. Nc6
{[%clk 0:02:22.3]} 14... Qc7 {[%clk 0:02:24.8]} 15. Nxe7 {[%clk 0:02:23.2]}
15... Qxe7 {[%clk 0:02:25.7]} 16. Nf3 {[%clk 0:02:16.6]} 16... b4 {[%clk
0:02:24.1]} 17. Ne5 {[%clk 0:02:15.6]} 17... Bd7 {[%clk 0:02:21.3]} 18. g5
{[%clk 0:01:27]} 18... Ne4 {[%clk 0:02:21.3]} 19. Bxe4 {[%clk 0:01:27.5]} 19...
fxe4 {[%clk 0:02:21.4]} 20. h4 {[%clk 0:01:22.6]} 20... O-O {[%clk 0:02:21.1]}
21. Ng4 {[%clk 0:01:13.5]} 21... Rab8 {[%clk 0:02:13.6]} 22. Nf6+ {[%clk
0:01:12.5]} 22... Rxf6 {[%clk 0:02:13.6]} 23. gxf6 {[%clk 0:01:13.4]} 23... Qxf6
{[%clk 0:02:14.5]} 24. cxb4 {[%clk 0:01:12.3]} 24... Rxb4 {[%clk 0:02:13.7]} 25.
Qd2 {[%clk 0:01:12.3]} 25... a5 {[%clk 0:02:12.8]} 26. O-O-O {[%clk 0:01:12.2]}
26... Qe7 {[%clk 0:01:48.1]} 27. Qc3 {[%clk 0:01:08.9]} 27... Kg7 {[%clk
0:01:31.3]} 28. Rdg1 {[%clk 0:01:08.7]} 28... h6 {[%clk 0:01:30]} 29. Rg3 {[%clk
0:01:07.8]} 29... Be8 {[%clk 0:01:29.5]} 30. f3 {[%clk 0:01:05.5]} 30... exf3
{[%clk 0:01:05.7]} 31. Rxf3 {[%clk 0:01:06.4]} 31... Rb7 {[%clk 0:00:58.8]} 32.
Rf4 {[%clk 0:01:01.7]} 32... Qb4 {[%clk 0:00:54.9]} 33. Rhf1 {[%clk 0:00:59.3]}
33... Qa4 {[%clk 0:00:50.8]} 34. Kb1 {[%clk 0:00:56.7]} 34... g5 {[%clk
0:00:49.2]} 35. hxg5 {[%clk 0:00:54.5]} 35... Bg6+ {[%clk 0:00:48.6]} 36. Ka1
{[%clk 0:00:54.5]} 36... Rb3 {[%clk 0:00:36.7]} 37. Qc1 {[%clk 0:00:53.5]} 37...
c3 {[%clk 0:00:33.9]} 38. gxh6+ {[%clk 0:00:53.2]} 38... Kh7 {[%clk 0:00:31.1]}
39. Rf7+ {[%clk 0:00:28.5]} 39... Bxf7 {[%clk 0:00:17.5]} 40. Rxf7+ {[%clk
0:00:29.4]} 40... Kg6 {[%clk 0:00:17.5]} 41. Qc2+ {[%clk 0:00:29.5]} 41... Kxf7
{[%clk 0:00:16.9]} 42. Qxb3 {[%clk 0:00:30.2]} 42... Qxb3 {[%clk 0:00:16.5]} 43.
axb3 {[%clk 0:00:30.3]} 43... c2 {[%clk 0:00:17.1]} 0-1

[Event "*** SCC Grand Prix: Titled Tuesday Blitz"]
[Site "Chess.com"]
[Date "2020.08.11"]
[Round "5"]
[White "Zhani-Z"]
[Black "12teen"]
[Result "0-1"]
[WhiteElo "2459"]
[BlackElo "2685"]
[TimeControl "180+1"]
[EndTime "10:55:19 PDT"]
[Termination "12teen won on time"]

1. e4 {[%clk 0:03:00.9]} 1... b6 {[%clk 0:03:00.9]} 2. d4 {[%clk 0:03:00.2]}
2... e6 {[%clk 0:02:59.8]} 3. Bd3 {[%clk 0:03:00.1]} 3... Bb7 {[%clk 0:03:00.3]}
4. Nf3 {[%clk 0:03:00.5]} 4... Nf6 {[%clk 0:03:00.5]} 5. Qe2 {[%clk 0:03:00.5]}
5... d5 {[%clk 0:03:01]} 6. e5 {[%clk 0:02:59.2]} 6... Nfd7 {[%clk 0:03:01.3]}
7. O-O {[%clk 0:02:53.4]} 7... Be7 {[%clk 0:03:01.8]} 8. c3 {[%clk 0:02:46.3]}
8... c5 {[%clk 0:02:59.5]} 9. Be3 {[%clk 0:02:36.5]} 9... Nc6 {[%clk 0:02:40.6]}
10. a3 {[%clk 0:02:35.9]} 10... a6 {[%clk 0:02:40.5]} 11. Nbd2 {[%clk
0:02:12.5]} 11... b5 {[%clk 0:02:39]} 12. g3 {[%clk 0:02:03.6]} 12... Qc7 {[%clk
0:02:37.7]} 13. h4 {[%clk 0:02:02.4]} 13... g6 {[%clk 0:02:35]} 14. Ng5 {[%clk
0:01:55.4]} 14... h6 {[%clk 0:02:28.5]} 15. Nh3 {[%clk 0:01:44.1]} 15... Nb6
{[%clk 0:02:23.9]} 16. h5 {[%clk 0:01:21.7]} 16... g5 {[%clk 0:02:16.4]} 17. f4
{[%clk 0:01:21.6]} 17... gxf4 {[%clk 0:02:12.7]} 18. Rxf4 {[%clk 0:01:20]} 18...
Rg8 {[%clk 0:02:07.6]} 19. Kh2 {[%clk 0:01:16.1]} 19... Nc4 {[%clk 0:01:56.5]}
20. Nxc4 {[%clk 0:00:57.6]} 20... dxc4 {[%clk 0:01:55.4]} 21. Be4 {[%clk
0:00:57.4]} 21... cxd4 {[%clk 0:01:55.6]} 22. cxd4 {[%clk 0:00:57.4]} 22...
O-O-O {[%clk 0:01:50.5]} 23. Rxf7 {[%clk 0:00:52.7]} 23... Nxd4 {[%clk
0:01:49.4]} 24. Bxd4 {[%clk 0:00:51.9]} 24... Rxd4 {[%clk 0:01:50.3]} 25. Bxb7+
{[%clk 0:00:39.8]} 25... Qxb7 {[%clk 0:01:51.2]} 26. Nf4 {[%clk 0:00:28.2]}
26... Rgd8 {[%clk 0:01:39.3]} 27. Qg4 {[%clk 0:00:21.2]} 27... Rd2+ {[%clk
0:01:34.1]} 28. Kh3 {[%clk 0:00:20.9]} 28... Qd7 {[%clk 0:01:24.4]} 29. Qxe6
{[%clk 0:00:20.9]} 29... Qxe6+ {[%clk 0:01:23.8]} 30. Nxe6 {[%clk 0:00:21.8]}
30... R8d7 {[%clk 0:01:24.2]} 31. Nf4 {[%clk 0:00:14.7]} 31... Bg5 {[%clk
0:01:17.8]} 32. e6 {[%clk 0:00:14.1]} 32... Re7 {[%clk 0:01:13.6]} 33. Re1
{[%clk 0:00:09.7]} 33... Kd8 {[%clk 0:00:57.2]} 34. Ng6 {[%clk 0:00:08.3]} 34...
Re8 {[%clk 0:00:53.1]} 35. Ra7 {[%clk 0:00:08]} 35... Re7 {[%clk 0:00:34.7]} 36.
Nxe7 {[%clk 0:00:05.4]} 36... Bxe7 {[%clk 0:00:35.6]} 37. Rf1 {[%clk 0:00:02.8]}
37... Bc5 {[%clk 0:00:28.2]} 0-1

[Event "*** SCC Grand Prix: Titled Tuesday Blitz"]
[Site "Chess.com"]
[Date "2020.08.11"]
[Round "5"]
[White "a3aki"]
[Black "shnitez"]
[Result "1/2-1/2"]
[WhiteElo "2096"]
[BlackElo "2460"]
[TimeControl "180+1"]
[EndTime "10:55:19 PDT"]
[Termination "Game drawn by repetition"]

1. e4 {[%clk 0:03:00.9]} 1... c5 {[%clk 0:01:22.5]} 2. Nf3 {[%clk 0:02:59.9]}
2... e6 {[%clk 0:01:22.5]} 3. d4 {[%clk 0:02:59.6]} 3... cxd4 {[%clk 0:01:23.4]}
4. Nxd4 {[%clk 0:02:59.9]} 4... a6 {[%clk 0:01:23.7]} 5. Nc3 {[%clk 0:02:59.4]}
5... b5 {[%clk 0:01:23.9]} 6. h3 {[%clk 0:02:57.5]} 6... Bb7 {[%clk 0:01:23.5]}
7. a3 {[%clk 0:02:57.3]} 7... Nf6 {[%clk 0:01:22.8]} 8. Bd3 {[%clk 0:02:57]}
8... Qc7 {[%clk 0:01:18.2]} 9. O-O {[%clk 0:02:54.5]} 9... Bc5 {[%clk
0:01:13.6]} 10. Be3 {[%clk 0:02:53.3]} 10... d5 {[%clk 0:01:10.5]} 11. exd5
{[%clk 0:02:52.8]} 11... Nxd5 {[%clk 0:01:11.4]} 12. Nxd5 {[%clk 0:02:52.4]}
12... Bxd5 {[%clk 0:01:12.3]} 13. c3 {[%clk 0:02:48.9]} 13... O-O {[%clk
0:01:09]} 14. Qh5 {[%clk 0:02:42.7]} 14... g6 {[%clk 0:01:08.2]} 15. Qh4 {[%clk
0:02:39.5]} 15... Nd7 {[%clk 0:00:59.9]} 16. Rad1 {[%clk 0:02:31.1]} 16... Rfe8
{[%clk 0:00:46.9]} 17. Nc2 {[%clk 0:02:26.1]} 17... Bb3 {[%clk 0:00:40.2]} 18.
Rd2 {[%clk 0:02:19.9]} 18... Bxc2 {[%clk 0:00:39.5]} 19. Bxc2 {[%clk 0:02:19.1]}
19... Bxe3 {[%clk 0:00:37.4]} 20. fxe3 {[%clk 0:02:19.7]} 20... Ne5 {[%clk
0:00:32.9]} 21. Rdf2 {[%clk 0:02:14.6]} 21... Ra7 {[%clk 0:00:31.8]} 22. Qd4
{[%clk 0:02:12.5]} 22... Rd8 {[%clk 0:00:30.8]} 23. Qf4 {[%clk 0:02:11.8]} 23...
Qb8 {[%clk 0:00:27.4]} 24. Rd1 {[%clk 0:02:08.9]} 24... Rxd1+ {[%clk 0:00:25.3]}
25. Bxd1 {[%clk 0:02:09.5]} 25... Rd7 {[%clk 0:00:25.6]} 26. Bc2 {[%clk
0:02:06.1]} 26... Qc7 {[%clk 0:00:22.5]} 27. Qe4 {[%clk 0:01:43.5]} 27... Nc4
{[%clk 0:00:20.3]} 28. b3 {[%clk 0:01:38.7]} 28... Nxa3 {[%clk 0:00:17.8]} 29.
Qa8+ {[%clk 0:01:36.5]} 29... Kg7 {[%clk 0:00:17.7]} 30. Qxa6 {[%clk 0:01:36.5]}
30... Qxc3 {[%clk 0:00:16.5]} 31. Qxa3 {[%clk 0:01:34.6]} 31... Qe1+ {[%clk
0:00:14.9]} 32. Rf1 {[%clk 0:01:33.9]} 32... Qxe3+ {[%clk 0:00:15]} 33. Kh1
{[%clk 0:01:33.2]} 33... Rd2 {[%clk 0:00:14.8]} 34. Qa1+ {[%clk 0:01:29.4]}
34... e5 {[%clk 0:00:14.7]} 35. Qc1 {[%clk 0:01:26.5]} 35... Qc3 {[%clk
0:00:13.1]} 36. Rxf7+ {[%clk 0:01:22]} 36... Kg8 {[%clk 0:00:08.9]} 37. Qf1
{[%clk 0:00:55.2]} 37... Qxc2 {[%clk 0:00:05.9]} 38. Rf8+ {[%clk 0:00:54.8]}
38... Kg7 {[%clk 0:00:05.9]} 39. Qf6+ {[%clk 0:00:48.9]} 39... Kh6 {[%clk
0:00:06]} 40. Qh4+ {[%clk 0:00:42.5]} 40... Kg7 {[%clk 0:00:06]} 41. Qe7+ {[%clk
0:00:33]} 41... Kh6 {[%clk 0:00:06]} 42. Qh4+ {[%clk 0:00:26.2]} 42... Kg7
{[%clk 0:00:06]} 43. Qf6+ {[%clk 0:00:26.9]} 43... Kh6 {[%clk 0:00:06.3]} 44.
Qh4+ {[%clk 0:00:26.9]} 1/2-1/2